Cogmind - Beta 16 @@@ ROGUE MODE // 2025.10.31 @ 20:01:46 Player: Kate Result: Destroyed by L-31 Rogue with Katana Performance ------------- Evolutions (1) 500 Regions Visited (4) 800 Robots Destroyed (10) 50 Value Destroyed (252) 252 Prototype IDs (0) 0 Alien Tech Used (0) 0 Bonus (0) 0 TOTAL SCORE: 1602 Bonus ------- None Cogmind --------- Core Integrity 0/400 Matter 251/300 Energy 93/100 System Corruption 3% Temperature Cool (0) Movement Walking (120) Location -9/Storage Parts ------- > --- POWER (1) -------- (None) > --- PROPULSION (4) --- Aluminum Leg Aluminum Leg Aluminum Leg Improved Aluminum Leg > --- UTILITY (2) ------ Terrain Scanner > --- WEAPON (2) ------- Medium Laser Assault Rifle (fused) > --- INVENTORY (5) ---- Large Storage Unit Medium Laser Light Assault Rifle Rocket Launcher Peak State ------------ > --- POWER ------------ Light Ion Engine > --- PROPULSION ------- Aluminum Leg Aluminum Leg Aluminum Leg Improved Aluminum Leg > --- UTILITY ---------- Terrain Scanner Medium Armor Plating > --- WEAPON ----------- Medium Laser Assault Rifle > --- INVENTORY -------- Large Storage Unit Medium Laser Light Assault Rifle [Rating: 11] Favorites ----------- Power Light Ion Engine Engine Light Ion Engine Propulsion Aluminum Leg Leg Aluminum Leg Utility Small Storage Unit Device Terrain Scanner Storage Small Storage Unit Processor Targeting Computer Protection Medium Armor Plating Weapon Assault Rifle Energy Gun Medium Laser Ballistic Gun Assault Rifle Launcher Grenade Launcher Build | -11 -10 -10 -9 -9 ------- Run | Yrd Mat Min Mat Sto Slots Evolved 2 | . . . 2 . Power . | . . . . . Propulsion 2 | . . . 2 . Utility . | . . . . . Weapon . | . . . . . Parts Attached 18 | 6 2 . 2 8 Power 2 | 1 . . . 1 Engine 2 | 1 . . . 1 Core . | . . . . . Reactor . | . . . . . Propulsion 6 | 2 . . . 4 Treads . | . . . . . Leg 6 | 2 . . . 4 Wheel . | . . . . . Hover . | . . . . . Flight . | . . . . . Utility 4 | 1 1 . . 2 Device 1 | . . . . 1 Storage 1 | 1 . . . . Processor 1 | . 1 . . . Hackware . | . . . . . Protection 1 | . . . . 1 Artifact . | . . . . . Weapon 6 | 2 1 . 2 1 Energy Gun 1 | . . . . 1 Energy Cannon . | . . . . . Ballistic Gun 4 | 2 . . 2 . Ballistic Cannon . | . . . . . Launcher 1 | . 1 . . . Special Weapon . | . . . . . Impact Weapon . | . . . . . Slashing Weapon . | . . . . . Piercing Weapon . | . . . . . Special Melee Weapon . | . . . . . Unidentified Prototypes . | . . . . . Parts Lost 7 | . . . 5 2 Power 1 | . . . . 1 Propulsion 2 | . . . 2 . Utility 2 | . . . 1 1 Weapon 2 | . . . 2 . Highest Loss Streak 5 | . . . 5 2 To Critical Strikes . | . . . . . Average Backups 4 | 1 3 5 5 3 Power . | . 1 1 1 . Propulsion . | . . . . . Utility . | . . . . . Weapon 2 | . 2 4 4 2 Tool/Special . | . . . . . Unused Backups 3 | . . . . 3 Power . | . . . . . Propulsion . | . . . . . Utility 1 | . . . . 1 Weapon 2 | . . . . 2 Tool/Special . | . . . . . Average Slot Usage (%) 72 | . 88 100 69 62 Engine 8 | . 14 14 10 3 Leg 23 | . 28 28 19 22 Device 4 | . . . . 10 Storage 6 | . 14 14 11 . Processor 3 | . 3 14 9 . Protection 2 | . . . . 6 Energy Gun 4 | . . . . 9 Ballistic Gun 11 | . 17 14 10 9 Launcher 5 | . 10 14 9 . Peak Build Rating 11 | 6 7 7 8 11 Average Rating 6 | 3 6 7 6 6 On Entrance 4 | . 6 7 7 1 Avg Prop Armor Cover (%) . | . . . . . Naked Turns 13 | . . . . 13 Heaviest Build 15 | 11 13 13 14 15 Greatest Support 43 | 20 20 20 20 43 Greatest Overweight (x) 3 | 3 . . . 1 Average Overweight (x) . | . . . . . Largest Inventory Capacity 8 | 8 8 8 8 5 Average Capacity 6 | 7 8 8 8 5 Most Carried 6 | 2 5 5 6 5 Average Carried 4 | 1 3 5 5 3 Final Capacity 8 | 8 8 8 8 5 Final Carried 5 | 2 5 5 5 4 Class Distribution -------------------- 100% | Mutant Dominant Class ---------------- Mutant | -10/Materials Mutant | -10/Mines Mutant | -9/Materials Mutant | -9/Storage Resources | -11 -10 -10 -9 -9 ----------- Run | Yrd Mat Min Mat Sto Matter Collected 398 | 180 . . 123 95 Remotely . | . . . . . Salvage Created 318 | . . 18 123 177 Parts 13 | . . 2 2 9 Haulers Intercepted . | . . . . . Recyclers Shooed . | . . . . . Parts Field Recycled . | . . . . . Retrieved Matter . | . . . . . Parts Self-Destructed . | . . . . . Prevented . | . . . . . Parts Restored . | . . . . . Kills | -11 -10 -10 -9 -9 ------- Run | Yrd Mat Min Mat Sto Combat Hostiles Destroyed 9 | . . 3 2 4 Guns 6 | . . . 2 4 AOE 3 | . . 3 . . Classes Destroyed 4 | . . 1 3 . Recycler 1 | . . . 1 . Swarmer 3 | . . 3 . . Grunt 5 | . . . 1 4 Brawler 1 | . . . 1 . Best Kill Streak 3 | . . 3 2 2 Combat Bots Only 3 | . . 3 1 2 Max Kills in Single Turn 2 | . . 2 1 1 Gunslinging . | . . . . . Exploded 2 | . . 2 . . Melee . | . . . . . Uniques/NPCs Destroyed . | . . . . . Combat | -11 -10 -10 -9 -9 -------- Run | Yrd Mat Min Mat Sto Hostile Shots Fired 110 | . . 3 67 40 Missed 35 | . . 2 17 16 Hits 75 | . . 1 50 24 Melee 17 | . . . 11 6 Projectile 58 | . . 1 39 18 Critical Strikes 4 | . . . 2 2 Damage Taken 1245 | . . 32 800 413 Core 413 | . . 10 335 68 Absorbed by Shields . | . . . . . Core Remaining (%) 98 | 100 . 96 . . Volleys Fired 49 | . . 3 9 37 Largest 2 | . . 1 2 2 Hottest 70 | . . 30 43 70 Shots Fired 75 | . . 3 12 60 Gun 72 | . . . 12 60 Cannon . | . . . . . Launcher 3 | . . 3 . . Special . | . . . . . Kinetic 35 | . . . 12 23 Thermal 37 | . . . . 37 Explosive 3 | . . 3 . . Electromagnetic . | . . . . . Robot Hit Streak 9 | . . . 9 6 Robot Miss Streak 2 | . . 1 2 1 Penetration Max . | . . . . . Secondary Targets 1 | . . . . 1 Max Gunslinging Chain 1 | . . . . 1 Shots Hit Robots 37 | . . . 10 27 Core Hits 22 | . . 2 8 12 Critical Kills . | . . . . . Critical Parts Destroyed . | . . . . . Critical Strikes . | . . . . . Melee Attacks . | . . . . . Impact . | . . . . . Slashing . | . . . . . Piercing . | . . . . . Sneak Attacks . | . . . . . Combat Hostiles . | . . . . . Follow-up Attacks . | . . . . . Damage Inflicted 734 | . . 195 167 372 Guns 482 | . . . 125 357 Cannons . | . . . . . Explosions 195 | . . 195 . . Melee . | . . . . . Ramming 57 | . . . 42 15 Kinetic 317 | . . . 125 192 Thermal 165 | . . . . 165 Explosive 195 | . . 195 . . Electromagnetic . | . . . . . Impact . | . . . . . Slashing . | . . . . . Piercing . | . . . . . Highest Corruption 3 | . . . 3 3 Average Corruption 2 | . . . 1 3 Corruption Purged . | . . . . . Corruption Blocked . | . . . . . Effects 8 | . . . . 8 Message Errors 3 | . . . . 3 Matter Fused 2 | . . . . 2 Heat Flow Errors 1 | . . . . 1 Parts Fused 1 | . . . . 1 Weapon Failures 1 | . . . . 1 Overload Shots . | . . . . . Overflow Damage 30 | . . 30 . . Projectiles . | . . . . . Explosions 30 | . . 30 . . Melee . | . . . . . Knockbacks . | . . . . . Impact . | . . . . . Kinetic . | . . . . . Secondary . | . . . . . Self-Inflicted Damage 59 | . . 23 36 . Shots 2 | . . 1 1 . Rammed 11 | . . . 11 . Targets Rammed 25 | . . . 20 5 Kicked 14 | . . . 9 5 Crushed . | . . . . . Highest Temperature 173 | . . . 10 173 Average Temperature 38 | . . . 6 42 Received Heat Transfer 366 | . . . 234 132 Siege Activations . | . . . . . Martial Activations . | . . . . . Shielding Activations . | . . . . . Robots Disrupted . | . . . . . Combat Hostiles . | . . . . . Robots Corrupted . | . . . . . Combat Hostiles . | . . . . . Parts Fried . | . . . . . Impact Corruptions . | . . . . . Robots Melted . | . . . . . Combat Hostiles . | . . . . . Parts Melted . | . . . . . Heat Transferred 481 | . . . . 481 Parts Sabotaged . | . . . . . Parts Stolen . | . . . . . Parts Stripped . | . . . . . Power Chain Reactions . | . . . . . Alert | -11 -10 -10 -9 -9 ------- Run | Yrd Mat Min Mat Sto Maximum Alert Level . | . . . . . Low Security (%) 100 | 100 100 100 100 100 Level 1 . | . . . . . Level 2 . | . . . . . Level 3 . | . . . . . Level 4 . | . . . . . Level 5 . | . . . . . High Security . | . . . . . Max Security . | . . . . . Peak Influence 83 | . 5 83 35 70 Initial 27 | . . . 27 1 Average 12 | . . 74 11 13 Influence Increases 310 | . 5 83 81 141 Destroy 0b10 Robot/C 180 | . . 60 40 80 Destroy 0b10 Robot/NC 5 | . . . 5 . Destroy Leader 30 | . . 10 20 . Successful Hack 5 | . 5 . . . Disable Machine 15 | . . . 15 . Destroy Structure 15 | . . 13 1 1 Lose Combat Pursuer 60 | . . . . 60 Influence Decreases 270 | . 5 10 149 106 Entered New Map 50 | . . . 46 4 Time Decay 150 | . 5 10 53 82 Lost Part 70 | . . . 50 20 Squads Dispatched 1 | . . . 1 . Investigation . | . . . . . Extermination . | . . . . . Reinforcement 1 | . . . 1 . Assault . | . . . . . Garrison . | . . . . . Intercept . | . . . . . Searches Triggered . | . . . . . Construction Impeded . | . . . . . Haulers Reinforced . | . . . . . Active Scanning Responses . | . . . . . Cargo Convoy Interrupts . | . . . . . Stealth | -11 -10 -10 -9 -9 --------- Run | Yrd Mat Min Mat Sto Distress Signals 1 | . . . 1 . Communications Jammed . | . . . . . Distress Signals . | . . . . . Times Spotted 25 | . 1 1 10 13 Peak Tracking Total 8 | . 1 1 8 6 Tactical Retreats 3 | . . . . 3 Traps | -11 -10 -10 -9 -9 ------- Run | Yrd Mat Min Mat Sto Traps Triggered . | . . . . . Indirectly . | . . . . . Trap Hack Attempts . | . . . . . Triggered . | . . . . . Disarmed . | . . . . . Reprogrammed . | . . . . . Reused . | . . . . . Traps Extracted . | . . . . . Installed . | . . . . . Triggered . | . . . . . Machines | -11 -10 -10 -9 -9 ---------- Run | Yrd Mat Min Mat Sto Machines Disabled 1 | . . . 1 . Max in Single Turn 1 | . . . 1 . Machines Repaired . | . . . . . Machines Dismantled . | . . . . . Machines Sabotaged . | . . . . . Overloaded Fab Kills . | . . . . . Hacking | -11 -10 -10 -9 -9 --------- Run | Yrd Mat Min Mat Sto Machines Accessed 3 | . 1 1 1 . Terminals 3 | . 1 1 1 . Fabricators . | . . . . . Repair Stations . | . . . . . Recycling Units . | . . . . . Scanalyzers . | . . . . . Garrison Access . | . . . . . Total Hacks 5 | . 3 1 1 . Successful 4 | . 2 1 1 . Failed 1 | . 1 . . . Catastrophic . | . . . . . Database Lockouts . | . . . . . Manual 2 | . . 1 1 . Terminals 5 | . 3 1 1 . Fabricators . | . . . . . Repair Stations . | . . . . . Recycling Units . | . . . . . Scanalyzers . | . . . . . Garrison Access . | . . . . . Terminal Hacks 4 | . 2 1 1 . Robot Analysis 1 | . 1 . . . Zone Layout 3 | . 1 1 1 . Fabricator Hacks . | . . . . . Repair Station Hacks . | . . . . . Recycling Unit Hacks . | . . . . . Scanalyzer . | . . . . . Garrison Access Hacks . | . . . . . Unauthorized Hacks . | . . . . . Terminals . | . . . . . Fabricators . | . . . . . Repair Stations . | . . . . . Recycling Units . | . . . . . Scanalyzers . | . . . . . Garrison Access . | . . . . . Data Cores Recovered . | . . . . . Used . | . . . . . Hacking Detections 1 | . 1 . . . Full Trace Events . | . . . . . Feedback Events . | . . . . . Feedback Blocked . | . . . . . Robot Schematics Acquired . | . . . . . Robots Built . | . . . . . Authchips . | . . . . . Time . | . . . . . Total Robot Build Rating . | . . . . . Part Schematics Acquired . | . . . . . Parts Built . | . . . . . Authchips . | . . . . . Time . | . . . . . Total Part Build Rating . | . . . . . Part Studies Acquired . | . . . . . Parts Repaired . | . . . . . Time . | . . . . . Parts Recycled . | . . . . . Recycled Matter . | . . . . . Retrieved Matter . | . . . . . Retrieved Components . | . . . . . Parts Scanalyzed . | . . . . . Part Schematics Acquired . | . . . . . Parts Damaged . | . . . . . Bothacking | -11 -10 -10 -9 -9 ------------ Run | Yrd Mat Min Mat Sto Used RIF Installer . | . . . . . Robots Hacked . | . . . . . Non-combat . | . . . . . Combat . | . . . . . Robot Hacks Applied . | . . . . . Relay Couplers Released . | . . . . . Fabnet Peak Effective % . | . . . . . Robots Rewired . | . . . . . Allies Hacked . | . . . . . Hacks Repelled . | . . . . . Allies | -11 -10 -10 -9 -9 -------- Run | Yrd Mat Min Mat Sto Total Allies . | . . . . . Largest Group . | . . . . . Highest-Rated Group . | . . . . . Highest-Rated Ally . | . . . . . Total Orders . | . . . . . Ally Attacks . | . . . . . Total Damage . | . . . . . Kills . | . . . . . Allies Corrupted . | . . . . . Allies Melted . | . . . . . Intel | -11 -10 -10 -9 -9 ------- Run | Yrd Mat Min Mat Sto Active Infowar (turns) 321 | . . . . 321 Terrain 321 | . . . . 321 Robot Analysis Total 1 | . 1 . . . Derelict Logs Recovered . | . . . . . Drone Launches . | . . . . . Drone Recoveries . | . . . . . Exploration | -11 -10 -10 -9 -9 ------------- Run | Yrd Mat Min Mat Sto Turns Passed 758 | 63 159 35 167 334 Spaces Moved 489 | 46 125 15 101 202 Core 78 | 21 . . . 57 Treads . | . . . . . Legs 411 | 25 125 15 101 145 Wheels . | . . . . . Hover . | . . . . . Flight . | . . . . . Fastest Speed 50 | 50 120 120 120 50 Average Speed 111 | 114 120 120 120 101 Slowest Speed 200 | 200 120 120 120 120 Overloaded Moves . | . . . . . Propulsion Burnouts . | . . . . . Robots Hopped . | . . . . . Potential Cave-ins . | . . . . . Cave-ins Triggered . | . . . . . Exploration Rate (%) 17 | 3 27 6 13 37 Regions Visited 4 Branch Regions 2 Pre-discovered Areas 1 | . . . . 1 Known Exits Taken . | . . . . . Unknown Exits Taken 4 | 1 1 1 1 . Scrap Searched . | . . . . . Spaces Dug . | . . . . . Terrain Destroyed 17 | . . 17 . . Melee . | . . . . . Projectile . | . . . . . AOE 17 | . . 17 . . Terrain Rammed . | . . . . . Walls Destroyed . | . . . . . Machines Disabled . | . . . . . Actions | -11 -10 -10 -9 -9 --------- Run | Yrd Mat Min Mat Sto Total 616 | 54 133 29 131 269 Wait 27 | . 4 12 . 11 Move 486 | 45 124 14 101 202 Hop . | . . . . . Pick Up 8 | 3 3 . . 2 Fast Attach 12 | 5 1 . . 6 Attach 5 | 1 . . 1 3 Detach . | . . . . . Swap 2 | . 1 . 1 . Drop 1 | . . . . 1 Fire 49 | . . 3 9 37 Melee . | . . . . . Ram 10 | . . . 10 . Kick 14 | . . . 9 5 Crush . | . . . . . Escape Stasis . | . . . . . Rewire 2 | . . . . 2 Trap . | . . . . . Miscellaneous . | . . . . . Route ------- -11/Scrapyard -10/Materials -10/Mines (discovered 2 exits: *Mat x2) -9/Materials -9/Storage History --------- Turn | Location | Event 6 | -11/Scrapyard | Discovered new exit (range 16) 64 | -11/Scrapyard | Entered Materials 205 | -10/Materials | Discovered new exit (range 8) 223 | -10/Materials | Entered Mines 231 | -10/Mines | Discovered new exit (range 13) 231 | -10/Mines | Discovered new exit (range 18) 258 | -10/Mines | Entered Materials 258 | -9/Materials | Evolved 2 slots: Propulsion x2 279 | -9/Materials | Discovered new exit (range 10) 320 | -9/Materials | Build established: Mutant 411 | -9/Materials | Core integrity fell below 50% 421 | -9/Materials | Core integrity fell below 20% 425 | -9/Materials | Entered Storage 449 | -9/Storage | Lost 5 parts (2n1u2w) 595 | -9/Storage | Learned location of Armory (-4) 759 | -9/Storage | Destroyed by L-31 Rogue with Katana Last Messages --------------- 00639_ Acquired Aluminum Leg. 00639_ K-01 Serf collects debris. 00640_ Critical hit (Burn: +37). 00641_ K-01 Serf collects debris. 00641_ Kicked K-01 Serf. 00641_ R-06 Scavenger collects Heat Sink. 00642_ Kicked K-01 Serf. 00643_ Kicked K-01 Serf out of the way. 00644_ K-01 Serf collects debris. 00645_ SXOJIJDG 00742_ G-34 Mercenary destroyed. 00742_ Switching to secondary target: L-31 Rogue. 00743_ Med. Armor Plating destroyed. 00752_ Lgt. Ion Engine destroyed. Map ----- +----------------------------------------------------+ | ? ????########## ##/#######????????????????????? | | ???????????????###### ########???????????????????? | | ????????????????????# # #???????????????????? | | ???????????????????## # #???????????????????? | | ????????????????????# # #???#???????????????? | | ????????????#??#????# " #???????????????????? | | ?????????????????#??# # #???????????????????? | | ?????????????????#??# # #???????????????????? | | ????????????????????# ########???????????????????? | | ????????????????????# #??????????????????????????? | | ????????????????????# #??????????????????????????? | | ????????????????????# #??????????????????????????? | | ?????????????????#?## #??????????????????????????? | | ?????????????????#### #??????????????????????????? | | ?????????????????# #???#?#????#???????????????? | | ?????????????????# #???????#??????????????????? | | ??????????? ????# ####???????????????????????? | | ?????????????????# #????? ?????????????????? | | ????????????????##;##/## #?????"?????????????????? | | ????????????????# # #???????????????????????? | | ????????????????# g # #???????????????????????? | | ????????????????#"" =Y # #???????????????????????? | | ?????????????#??#"T = g#!##### ??????????? | | ????????????????#"" =g% ??????????? | | ????????????????# *#l##### #???????????????? | | ????????????????##" "###!@ #????????????????????? | | ???????"?????????#"R"#?# = #????????????????????? | | ?????????????????#"""#?# t #????????????????????? | | ?????????????????####### ] #? ??????????????????? | | ???????????????????????#! #????????????????????? | | ?????????? ????????????######????????????????????? | | ???????????????????????? ????????????????????????? | | ?????????????????????????????????????????????????? | | ?????????????????????????????????????????????????? | | ?????????????????????????????????????????????????? | | ?????????????????????????????????????????????????? | | ?????????????????#???????????????????????????????? | | ?????????????????????????????????????????????????? | | | | | | | | | | | | | | | | | | | | | | | | | +----------------------------------------------------+ Best States ------------- Heat Dissipation 28 Energy Generation 10 Energy Capacity 125 Matter Stores 300 Matter Capacity 300 Sight Range 16 Terrain Scan Range 14 Terrain Scan Density 10 Armor Coverage 225 Evasion (%) 55 Targeting Accuracy 5 Item Schematics ----------------- None Robot Schematics ------------------ None Fabricated ------------ Nothing Repaired ---------- Nothing Studied --------- None Alien Tech Used ----------------- None Achievements -------------- None Challenges ------------ None Game ------ Seed DecoySpreadNeutralizer Manual? 0 Play Time 00:09:25 Cumulative 76.1 hours Start 2025.10.31 @ 19:54:20 End 2025.10.31 @ 20:01:46 Sessions 1 Manual Loads 0 Difficulty Rogue Special Mode None Game No. 151 Rogue 151 Adventurer 0 Explorer 0 Win Type - Total 1 Types 1/0/0/0/0/0/0/0/0/0 Lore% 56 Gallery% 51 Achievement% 27 Wizard Run 0 Options --------- Layout 1 ASCII 0 Keyboard 1 Movement Numpad Keybinds 0 Fullscreen 1 Font 32/Terminus Map View 50x35 Zoom Use 0% Tactical HUD 1 Map Filters NONE Filters NONE Steam 1 RUN: 44a26dc3-757b-43a2-a633-0eea129d8edf